[Event "Early-Titled-Tuesday-Blitz-May-14-2024"]
[Site "Chess.com"]
[Date "2024.05.14"]
[Round "3"]
[White "simaopdias"]
[Black "DishonorOnYourCow"]
[Result "0-1"]
[WhiteElo "2277"]
[BlackElo "2513"]
[TimeControl "180+1"]
[EndTime "8:30:26 PDT"]
[Termination "DishonorOnYourCow won on time"]

1. e4 {[%clk 0:03:00.4]} 1... c5 {[%clk 0:02:59.6]} 2. Nf3 {[%clk 0:03:00.6]}
2... d6 {[%clk 0:03:00.1]} 3. d4 {[%clk 0:03:01.4]} 3... cxd4 {[%clk 0:03:00.8]}
4. Nxd4 {[%clk 0:03:01.9]} 4... Nf6 {[%clk 0:03:01.7]} 5. Nc3 {[%clk 0:03:02.4]}
5... a6 {[%clk 0:03:00.4]} 6. Bg5 {[%clk 0:02:56.3]} 6... Nbd7 {[%clk
0:02:58.9]} 7. Qf3 {[%clk 0:02:56]} 7... h6 {[%clk 0:02:52.8]} 8. Bxf6 {[%clk
0:02:44.3]} 8... Nxf6 {[%clk 0:02:51.4]} 9. h3 {[%clk 0:02:43.2]} 9... e5 {[%clk
0:02:42.8]} 10. Nf5 {[%clk 0:02:42.1]} 10... g6 {[%clk 0:02:38]} 11. Ne3 {[%clk
0:02:39.9]} 11... Be6 {[%clk 0:02:33.1]} 12. Bc4 {[%clk 0:02:38]} 12... Bxc4
{[%clk 0:02:26.5]} 13. Nxc4 {[%clk 0:02:38.7]} 13... b5 {[%clk 0:02:19.6]} 14.
Ne3 {[%clk 0:02:37.6]} 14... Bg7 {[%clk 0:02:19.3]} 15. O-O {[%clk 0:02:36.9]}
15... O-O {[%clk 0:02:19.2]} 16. Rfd1 {[%clk 0:02:33.2]} 16... Qc7 {[%clk
0:02:18.5]} 17. Rd2 {[%clk 0:02:31.6]} 17... Rfd8 {[%clk 0:02:06.9]} 18. Rad1
{[%clk 0:02:31.1]} 18... h5 {[%clk 0:01:53.9]} 19. a3 {[%clk 0:02:23]} 19... Ne8
{[%clk 0:01:33.9]} 20. Ncd5 {[%clk 0:02:02.5]} 20... Qb7 {[%clk 0:01:32.8]} 21.
g4 {[%clk 0:01:52.7]} 21... hxg4 {[%clk 0:01:24.5]} 22. Nxg4 {[%clk 0:01:50.9]}
22... Rac8 {[%clk 0:00:57.5]} 23. c3 {[%clk 0:01:47.7]} 23... Rc4 {[%clk
0:00:54.2]} 24. Qe3 {[%clk 0:01:47.1]} 24... f5 {[%clk 0:00:47.6]} 25. exf5
{[%clk 0:01:40.7]} 25... gxf5 {[%clk 0:00:48.5]} 26. Nh6+ {[%clk 0:01:34.8]}
26... Bxh6 {[%clk 0:00:48.5]} 27. Qxh6 {[%clk 0:01:35.7]} 27... Qg7+ {[%clk
0:00:48.3]} 28. Qxg7+ {[%clk 0:01:34.6]} 28... Nxg7 {[%clk 0:00:47.8]} 29. Ne3
{[%clk 0:01:30.7]} 29... Rc6 {[%clk 0:00:46.8]} 30. Rd5 {[%clk 0:01:24]} 30...
Kf7 {[%clk 0:00:31.5]} 31. Rxe5 {[%clk 0:01:21.5]} 31... dxe5 {[%clk 0:00:11.6]}
32. Rxd8 {[%clk 0:01:22.4]} 32... f4 {[%clk 0:00:12.2]} 33. Ng4 {[%clk
0:01:16.3]} 33... Ke7 {[%clk 0:00:09.3]} 34. Ra8 {[%clk 0:01:12.5]} 34... Ke6
{[%clk 0:00:05.3]} 35. f3 {[%clk 0:01:04.4]} 35... Rd6 {[%clk 0:00:04.5]} 36.
Ra7 {[%clk 0:01:01.9]} 36... Nf5 {[%clk 0:00:02.1]} 37. Nf2 {[%clk 0:00:53]}
37... Rd2 {[%clk 0:00:01.4]} 38. Rxa6+ {[%clk 0:00:50.8]} 38... Ke7 {[%clk
0:00:01.6]} 39. Ng4 {[%clk 0:00:37.3]} 39... Ng3 {[%clk 0:00:01.4]} 40. h4
{[%clk 0:00:27.4]} 40... Rxb2 {[%clk 0:00:02.3]} 41. h5 {[%clk 0:00:25.3]} 41...
Rb1+ {[%clk 0:00:03.2]} 42. Kg2 {[%clk 0:00:24.7]} 42... Rb2+ {[%clk 0:00:04.1]}
43. Kh3 {[%clk 0:00:22.7]} 43... Nxh5 {[%clk 0:00:05]} 44. Nxe5 {[%clk
0:00:22.5]} 44... Ng3 {[%clk 0:00:05.4]} 45. Kg4 {[%clk 0:00:22]} 45... Ne2
{[%clk 0:00:06]} 46. Rb6 {[%clk 0:00:19.8]} 46... Nxc3 {[%clk 0:00:06.2]} 47.
Kxf4 {[%clk 0:00:18.5]} 47... Nd5+ {[%clk 0:00:06.3]} 48. Ke4 {[%clk 0:00:18.6]}
48... Nxb6 {[%clk 0:00:07.2]} 49. f4 {[%clk 0:00:09.2]} 49... Nc4 {[%clk
0:00:07.3]} 50. Nc6+ {[%clk 0:00:08.1]} 50... Kd6 {[%clk 0:00:07.1]} 51. Nd4
{[%clk 0:00:07.6]} 51... Rb1 {[%clk 0:00:06.2]} 52. Kd3 {[%clk 0:00:05.1]} 52...
Nxa3 {[%clk 0:00:04.7]} 0-1

[Event "Early-Titled-Tuesday-Blitz-May-14-2024"]
[Site "Chess.com"]
[Date "2024.05.14"]
[Round "3"]
[White "hakanazeri2"]
[Black "jraosam"]
[Result "1-0"]
[WhiteElo "2558"]
[BlackElo "2053"]
[TimeControl "180+1"]
[EndTime "8:30:28 PDT"]
[Termination "hakanazeri2 won by resignation"]

1. c4 {[%clk 0:02:55.9]} 1... e5 {[%clk 0:02:59.5]} 2. Nc3 {[%clk 0:02:55.9]}
2... Nc6 {[%clk 0:02:59.3]} 3. g3 {[%clk 0:02:55]} 3... g6 {[%clk 0:02:58.1]} 4.
Bg2 {[%clk 0:02:54.7]} 4... Bg7 {[%clk 0:02:58.5]} 5. e3 {[%clk 0:02:55.3]} 5...
Nge7 {[%clk 0:02:58.7]} 6. Nge2 {[%clk 0:02:55.9]} 6... O-O {[%clk 0:02:58.8]}
7. O-O {[%clk 0:02:56.2]} 7... d6 {[%clk 0:02:59]} 8. d4 {[%clk 0:02:56.6]} 8...
f5 {[%clk 0:02:53.2]} 9. Rb1 {[%clk 0:02:47.9]} 9... a5 {[%clk 0:02:52.1]} 10.
a3 {[%clk 0:02:47.7]} 10... h6 {[%clk 0:02:43.1]} 11. b4 {[%clk 0:02:46.9]}
11... Qd7 {[%clk 0:02:36.1]} 12. b5 {[%clk 0:02:45.5]} 12... Nd8 {[%clk
0:02:35.2]} 13. c5 {[%clk 0:02:43.8]} 13... e4 {[%clk 0:02:22.7]} 14. Qb3+
{[%clk 0:02:26.2]} 14... d5 {[%clk 0:02:22]} 15. Nf4 {[%clk 0:02:25.1]} 15... c6
{[%clk 0:02:19.8]} 16. Na4 {[%clk 0:02:25]} 16... Rb8 {[%clk 0:02:04]} 17. Nb6
{[%clk 0:02:24.6]} 17... Qc7 {[%clk 0:01:59.9]} 18. bxc6 {[%clk 0:02:17.2]}
18... bxc6 {[%clk 0:01:52.9]} 19. Bd2 {[%clk 0:02:14.4]} 19... g5 {[%clk
0:01:42.5]} 20. Nh5 {[%clk 0:02:05.3]} 20... Qa7 {[%clk 0:01:41.6]} 21. Nxg7
{[%clk 0:02:03.8]} 21... Kxg7 {[%clk 0:01:40.9]} 22. Nxc8 {[%clk 0:01:58.9]}
22... Rxc8 {[%clk 0:01:38.2]} 23. Qb6 {[%clk 0:01:58.4]} 23... Qxb6 {[%clk
0:01:34]} 24. Rxb6 {[%clk 0:01:59.3]} 24... f4 {[%clk 0:01:29.7]} 25. exf4
{[%clk 0:01:57.8]} 25... gxf4 {[%clk 0:01:29.8]} 26. Bxf4 {[%clk 0:01:58.5]}
26... Ne6 {[%clk 0:01:26.7]} 27. Bd6 {[%clk 0:01:57.9]} 27... Rf7 {[%clk
0:01:24.6]} 28. Bh3 {[%clk 0:01:57.4]} 28... Nf5 {[%clk 0:01:17]} 29. Be5+
{[%clk 0:01:52.6]} 29... Kg6 {[%clk 0:01:14.5]} 30. Rfb1 {[%clk 0:01:43.9]}
30... Ng5 {[%clk 0:01:06]} 31. Bxf5+ {[%clk 0:01:29.1]} 31... Rxf5 {[%clk
0:01:06.9]} 32. Kg2 {[%clk 0:01:21.3]} 32... Nf3 {[%clk 0:01:02.6]} 33. g4
{[%clk 0:01:08.7]} 33... Rg5 {[%clk 0:01:00.9]} 34. h3 {[%clk 0:01:00.4]} 34...
Nxe5 {[%clk 0:01:01]} 35. dxe5 {[%clk 0:00:59.7]} 35... Rxe5 {[%clk 0:01:01.9]}
36. f4 {[%clk 0:00:58.9]} 36... exf3+ {[%clk 0:01:01.5]} 37. Kxf3 {[%clk
0:00:59.1]} 37... Rf8+ {[%clk 0:01:02.1]} 38. Kg2 {[%clk 0:00:54.9]} 38... Re2+
{[%clk 0:00:59.8]} 39. Kg3 {[%clk 0:00:55.2]} 39... Re3+ {[%clk 0:00:59.8]} 40.
Kh4 {[%clk 0:00:55.7]} 40... Rf6 {[%clk 0:01:00.4]} 41. Ra6 {[%clk 0:00:43.2]}
41... Rxa3 {[%clk 0:00:58]} 42. Rbb6 {[%clk 0:00:42.2]} 42... Rff3 {[%clk
0:00:43.9]} 43. Rxc6+ {[%clk 0:00:41.3]} 43... Kg7 {[%clk 0:00:44.5]} 44. Rc7+
{[%clk 0:00:33.7]} 44... Rf7 {[%clk 0:00:43.7]} 45. Rxf7+ {[%clk 0:00:33.7]}
45... Kxf7 {[%clk 0:00:44.6]} 46. Rxh6 {[%clk 0:00:34]} 46... Rc3 {[%clk
0:00:43.9]} 47. c6 {[%clk 0:00:33.9]} 47... d4 {[%clk 0:00:43.9]} 48. Rd6 {[%clk
0:00:21.4]} 48... d3 {[%clk 0:00:44.1]} 49. c7 {[%clk 0:00:20.7]} 49... Ke7
{[%clk 0:00:43.2]} 50. Rxd3 {[%clk 0:00:20.8]} 50... Rxc7 {[%clk 0:00:43.8]} 51.
Kg5 {[%clk 0:00:21.2]} 51... Rc5+ {[%clk 0:00:43.9]} 52. Kg6 {[%clk 0:00:21.7]}
52... Rc6+ {[%clk 0:00:42.6]} 53. Kg7 {[%clk 0:00:22.2]} 53... Rc4 {[%clk
0:00:39.3]} 54. g5 {[%clk 0:00:22.3]} 54... Rh4 {[%clk 0:00:38.2]} 55. g6 {[%clk
0:00:22.7]} 55... a4 {[%clk 0:00:38.8]} 56. Re3+ {[%clk 0:00:20.5]} 56... Kd6
{[%clk 0:00:39.1]} 57. Kf7 {[%clk 0:00:20.2]} 57... Rf4+ {[%clk 0:00:38.4]} 58.
Kg8 {[%clk 0:00:20.8]} 58... a3 {[%clk 0:00:31.8]} 59. Rxa3 {[%clk 0:00:20.2]}
59... Ke6 {[%clk 0:00:32.3]} 60. g7 {[%clk 0:00:19.3]} 60... Kf6 {[%clk
0:00:32.2]} 61. Ra6+ {[%clk 0:00:17]} 61... Kg5 {[%clk 0:00:32.4]} 62. Re6
{[%clk 0:00:10]} 62... Rh4 {[%clk 0:00:30.5]} 63. Kf7 {[%clk 0:00:10]} 63...
Rf4+ {[%clk 0:00:30.6]} 64. Ke8 {[%clk 0:00:10.5]} 1-0

[Event "Early-Titled-Tuesday-Blitz-May-14-2024"]
[Site "Chess.com"]
[Date "2024.05.14"]
[Round "3"]
[White "Malikova777"]
[Black "HandKnit"]
[Result "1-0"]
[WhiteElo "2334"]
[BlackElo "2488"]
[TimeControl "180+1"]
[EndTime "8:30:32 PDT"]
[Termination "Malikova777 won on time"]

1. d4 {[%clk 0:03:00.9]} 1... Nf6 {[%clk 0:02:59.2]} 2. c4 {[%clk 0:03:00.6]}
2... e6 {[%clk 0:02:59.4]} 3. Nc3 {[%clk 0:03:00.6]} 3... Bb4 {[%clk 0:02:58]}
4. Qc2 {[%clk 0:03:00.7]} 4... c5 {[%clk 0:02:56.8]} 5. dxc5 {[%clk 0:02:57.8]}
5... Qc7 {[%clk 0:02:55.9]} 6. a3 {[%clk 0:02:53]} 6... Bxc5 {[%clk 0:02:55.8]}
7. Nf3 {[%clk 0:02:51.6]} 7... a6 {[%clk 0:02:52.4]} 8. g3 {[%clk 0:02:51.2]}
8... b6 {[%clk 0:02:52.1]} 9. Bg2 {[%clk 0:02:51]} 9... Bb7 {[%clk 0:02:52.7]}
10. O-O {[%clk 0:02:50.5]} 10... O-O {[%clk 0:02:52.6]} 11. Bf4 {[%clk
0:02:50.3]} 11... Bd6 {[%clk 0:02:44.7]} 12. Bxd6 {[%clk 0:02:46.4]} 12... Qxd6
{[%clk 0:02:45.6]} 13. Rfd1 {[%clk 0:02:45.8]} 13... Qc7 {[%clk 0:02:45.6]} 14.
b3 {[%clk 0:02:37.2]} 14... d6 {[%clk 0:02:32.2]} 15. Rac1 {[%clk 0:02:35.8]}
15... Rd8 {[%clk 0:02:29.4]} 16. Qd3 {[%clk 0:02:28.6]} 16... Qe7 {[%clk
0:02:18.9]} 17. e4 {[%clk 0:02:22]} 17... Nc6 {[%clk 0:02:14.5]} 18. Qe2 {[%clk
0:02:12.9]} 18... Rac8 {[%clk 0:02:00.8]} 19. Na4 {[%clk 0:02:08.5]} 19... Qc7
{[%clk 0:01:59.6]} 20. Rc2 {[%clk 0:01:57.9]} 20... Na5 {[%clk 0:01:54.7]} 21.
Nd2 {[%clk 0:01:48.9]} 21... b5 {[%clk 0:01:50.3]} 22. Nb2 {[%clk 0:01:46.3]}
22... Qb6 {[%clk 0:01:26.9]} 23. b4 {[%clk 0:01:29.5]} 23... Nxc4 {[%clk
0:01:25.7]} 24. Nbxc4 {[%clk 0:01:29.4]} 24... bxc4 {[%clk 0:01:26.6]} 25. Nxc4
{[%clk 0:01:29.1]} 25... Qb5 {[%clk 0:01:01.3]} 26. Nxd6 {[%clk 0:01:11.2]}
26... Qxe2 {[%clk 0:00:53.9]} 27. Rxe2 {[%clk 0:01:12.1]} 27... Rc3 {[%clk
0:00:42.1]} 28. Red2 {[%clk 0:00:42.6]} 28... Bc6 {[%clk 0:00:38.3]} 29. e5
{[%clk 0:00:33.3]} 29... Nd5 {[%clk 0:00:34.4]} 30. Rd3 {[%clk 0:00:27.7]} 30...
Rc2 {[%clk 0:00:20.4]} 31. Be4 {[%clk 0:00:23.2]} 31... Ra2 {[%clk 0:00:19]} 32.
Rc1 {[%clk 0:00:20.7]} 32... Ba4 {[%clk 0:00:17.2]} 33. Bxd5 {[%clk 0:00:19.7]}
33... exd5 {[%clk 0:00:16.7]} 34. Rxd5 {[%clk 0:00:20.6]} 34... Rxa3 {[%clk
0:00:15.6]} 35. Kg2 {[%clk 0:00:19.3]} 35... Kf8 {[%clk 0:00:15.1]} 36. Rc7
{[%clk 0:00:18.6]} 36... Bb3 {[%clk 0:00:12]} 37. Rd3 {[%clk 0:00:16.1]} 37...
Rb8 {[%clk 0:00:10.2]} 38. Rxf7+ {[%clk 0:00:14.5]} 38... Bxf7 {[%clk
0:00:08.1]} 39. Rxa3 {[%clk 0:00:15.4]} 39... Bd5+ {[%clk 0:00:08.3]} 40. f3
{[%clk 0:00:13.9]} 40... Rxb4 {[%clk 0:00:08.8]} 41. Rxa6 {[%clk 0:00:13.7]}
41... Rb2+ {[%clk 0:00:09]} 42. Kh3 {[%clk 0:00:13.9]} 42... Bxf3 {[%clk
0:00:09.1]} 43. Nf5 {[%clk 0:00:11.8]} 43... g6 {[%clk 0:00:07.5]} 44. Nh4
{[%clk 0:00:08.2]} 44... Be2 {[%clk 0:00:05]} 45. Ra8+ {[%clk 0:00:07.2]} 45...
Ke7 {[%clk 0:00:04.9]} 46. Ra7+ {[%clk 0:00:07.7]} 46... Ke6 {[%clk 0:00:05.4]}
47. Rxh7 {[%clk 0:00:07.5]} 47... Bf1+ {[%clk 0:00:04.3]} 48. Kg4 {[%clk
0:00:07.8]} 48... Kxe5 {[%clk 0:00:04.6]} 49. Nxg6+ {[%clk 0:00:07.7]} 49... Kf6
{[%clk 0:00:05.2]} 50. Nf4 {[%clk 0:00:07.7]} 50... Rb4 {[%clk 0:00:04.7]} 51.
Rh6+ {[%clk 0:00:07.7]} 51... Kg7 {[%clk 0:00:05.1]} 52. Rg6+ {[%clk 0:00:07.8]}
52... Kf7 {[%clk 0:00:05.6]} 53. Rg5 {[%clk 0:00:08.4]} 53... Be2+ {[%clk
0:00:05.5]} 54. Kh4 {[%clk 0:00:07.8]} 54... Bd1 {[%clk 0:00:06]} 55. h3 {[%clk
0:00:07.9]} 55... Bf3 {[%clk 0:00:05.3]} 56. Re5 {[%clk 0:00:07.9]} 56... Bd1
{[%clk 0:00:04.4]} 57. Re3 {[%clk 0:00:08.4]} 57... Kg7 {[%clk 0:00:03.3]} 58.
Kg5 {[%clk 0:00:08.2]} 58... Rb5+ {[%clk 0:00:02.7]} 59. Kh4 {[%clk 0:00:08.2]}
59... Rb4 {[%clk 0:00:02.9]} 60. Re5 {[%clk 0:00:08.6]} 60... Kf6 {[%clk
0:00:02]} 61. Rd5 {[%clk 0:00:09.1]} 61... Kg7 {[%clk 0:00:01.9]} 62. Rxd1
{[%clk 0:00:08.7]} 1-0

[Event "Early-Titled-Tuesday-Blitz-May-14-2024"]
[Site "Chess.com"]
[Date "2024.05.14"]
[Round "3"]
[White "maximnovik"]
[Black "NewBornNow"]
[Result "1-0"]
[WhiteElo "2533"]
[BlackElo "2737"]
[TimeControl "180+1"]
[EndTime "8:30:34 PDT"]
[Termination "maximnovik won by checkmate"]

1. e4 {[%clk 0:03:00]} 1... c5 {[%clk 0:02:58.3]} 2. Nf3 {[%clk 0:03:00.1]} 2...
d6 {[%clk 0:02:57.7]} 3. c3 {[%clk 0:03:00.2]} 3... Nf6 {[%clk 0:02:56.8]} 4. h3
{[%clk 0:03:00.8]} 4... g6 {[%clk 0:02:54]} 5. Bd3 {[%clk 0:03:01.2]} 5... Bg7
{[%clk 0:02:53.9]} 6. O-O {[%clk 0:03:01.8]} 6... O-O {[%clk 0:02:53.8]} 7. Bc2
{[%clk 0:03:01.5]} 7... e5 {[%clk 0:02:54.3]} 8. d4 {[%clk 0:03:02]} 8... cxd4
{[%clk 0:02:54.4]} 9. cxd4 {[%clk 0:03:02.5]} 9... Nc6 {[%clk 0:02:54.6]} 10. d5
{[%clk 0:03:02.5]} 10... Nb4 {[%clk 0:02:54.1]} 11. Bb3 {[%clk 0:03:02.7]} 11...
a5 {[%clk 0:02:53.7]} 12. Nc3 {[%clk 0:03:02.3]} 12... Ne8 {[%clk 0:02:51.7]}
13. a3 {[%clk 0:02:56.9]} 13... Na6 {[%clk 0:02:51.4]} 14. Be3 {[%clk
0:02:57.5]} 14... f5 {[%clk 0:02:47.2]} 15. Ng5 {[%clk 0:02:56.1]} 15... f4
{[%clk 0:02:46.6]} 16. Ne6 {[%clk 0:02:56.2]} 16... Bxe6 {[%clk 0:02:43.4]} 17.
dxe6 {[%clk 0:02:56.3]} 17... Kh8 {[%clk 0:02:42]} 18. Nd5 {[%clk 0:02:51.3]}
18... Qg5 {[%clk 0:02:18.5]} 19. e7 {[%clk 0:02:24.2]} 19... Rf7 {[%clk
0:02:16.2]} 20. Bb6 {[%clk 0:02:09.8]} 20... f3 {[%clk 0:02:11.9]} 21. g3 {[%clk
0:02:09.9]} 21... Rc8 {[%clk 0:01:26]} 22. Rc1 {[%clk 0:02:02.6]} 22... Rc6
{[%clk 0:01:24.5]} 23. Kh2 {[%clk 0:01:45]} 23... Bf6 {[%clk 0:01:09.7]} 24. Be3
{[%clk 0:01:29.9]} 24... Qh5 {[%clk 0:01:03.8]} 25. g4 {[%clk 0:01:01.2]} 25...
Qh4 {[%clk 0:01:00.9]} 26. Qxf3 {[%clk 0:01:00.9]} 26... Kg7 {[%clk 0:00:51.7]}
27. Qg2 {[%clk 0:00:38.8]} 27... Bxe7 {[%clk 0:00:44.3]} 28. Nxe7 {[%clk
0:00:27.2]} 28... Rxe7 {[%clk 0:00:43.3]} 29. Bd5 {[%clk 0:00:27.1]} 29... Rcc7
{[%clk 0:00:35.1]} 30. g5 {[%clk 0:00:26.5]} 30... Nc5 {[%clk 0:00:30.1]} 31. b4
{[%clk 0:00:25.5]} 31... Nd3 {[%clk 0:00:28]} 32. Rxc7 {[%clk 0:00:24.4]} 32...
Rxc7 {[%clk 0:00:27.1]} 33. Qf3 {[%clk 0:00:23.7]} 33... Nf4 {[%clk 0:00:24.6]}
34. Bxf4 {[%clk 0:00:23.5]} 34... exf4 {[%clk 0:00:23.4]} 35. bxa5 {[%clk
0:00:23.2]} 35... Qxg5 {[%clk 0:00:21.9]} 36. Rb1 {[%clk 0:00:19.8]} 36... Nf6
{[%clk 0:00:20.1]} 37. Bxb7 {[%clk 0:00:19.8]} 37... Qxa5 {[%clk 0:00:14.2]} 38.
Qxf4 {[%clk 0:00:20]} 38... Qxa3 {[%clk 0:00:12.8]} 39. e5 {[%clk 0:00:18.6]}
39... dxe5 {[%clk 0:00:11.6]} 40. Qxe5 {[%clk 0:00:19]} 40... Re7 {[%clk
0:00:12.2]} 41. Qd4 {[%clk 0:00:17.7]} 41... Qa2 {[%clk 0:00:11.4]} 42. Rb6
{[%clk 0:00:16.8]} 42... Re6 {[%clk 0:00:09.6]} 43. Rxe6 {[%clk 0:00:11.4]}
43... Qxe6 {[%clk 0:00:08.2]} 44. Bf3 {[%clk 0:00:12]} 44... Qf5 {[%clk
0:00:07.6]} 45. Kg2 {[%clk 0:00:12]} 45... Qg5+ {[%clk 0:00:07.6]} 46. Kh2
{[%clk 0:00:12.2]} 46... Qf5 {[%clk 0:00:08.1]} 47. Kg2 {[%clk 0:00:12.6]} 47...
h5 {[%clk 0:00:08.2]} 48. h4 {[%clk 0:00:12.4]} 48... Kh6 {[%clk 0:00:08.8]} 49.
Kg3 {[%clk 0:00:12.6]} 49... Kg7 {[%clk 0:00:09.3]} 50. Bg2 {[%clk 0:00:11.2]}
50... Qe6 {[%clk 0:00:08.5]} 51. f4 {[%clk 0:00:10.9]} 51... Qe1+ {[%clk
0:00:07.8]} 52. Kh3 {[%clk 0:00:09.7]} 52... Qe2 {[%clk 0:00:06]} 53. Qe5 {[%clk
0:00:07.7]} 53... Qg4+ {[%clk 0:00:05.8]} 54. Kh2 {[%clk 0:00:08.1]} 54... Qxh4+
{[%clk 0:00:06.3]} 55. Kg1 {[%clk 0:00:07.1]} 55... Qg4 {[%clk 0:00:07.2]} 56.
Qe7+ {[%clk 0:00:07]} 56... Kh6 {[%clk 0:00:05.5]} 57. Qxf6 {[%clk 0:00:07.9]}
57... Qf5 {[%clk 0:00:03.1]} 58. Qh8# {[%clk 0:00:06.8]} 1-0

[Event "Early-Titled-Tuesday-Blitz-May-14-2024"]
[Site "Chess.com"]
[Date "2024.05.14"]
[Round "3"]
[White "Polish_fighter3000"]
[Black "SchmakAttack"]
[Result "1-0"]
[WhiteElo "3102"]
[BlackElo "2789"]
[TimeControl "180+1"]
[EndTime "8:30:40 PDT"]
[Termination "Polish_fighter3000 won by resignation"]

1. b3 {[%clk 0:03:00.9]} 1... g6 {[%clk 0:02:58.3]} 2. Bb2 {[%clk 0:03:01.8]}
2... Nf6 {[%clk 0:02:58.7]} 3. e4 {[%clk 0:02:57]} 3... Bg7 {[%clk 0:02:53.3]}
4. e5 {[%clk 0:02:54.4]} 4... Nd5 {[%clk 0:02:53.8]} 5. c4 {[%clk 0:02:44.5]}
5... Nb6 {[%clk 0:02:49]} 6. d4 {[%clk 0:02:41.3]} 6... O-O {[%clk 0:02:39.1]}
7. Be2 {[%clk 0:02:23.4]} 7... d6 {[%clk 0:02:38.9]} 8. Nf3 {[%clk 0:02:05.2]}
8... Nc6 {[%clk 0:02:23.7]} 9. exd6 {[%clk 0:02:01.5]} 9... exd6 {[%clk
0:02:22.9]} 10. O-O {[%clk 0:01:57.6]} 10... Bg4 {[%clk 0:01:52.6]} 11. h3
{[%clk 0:01:50.1]} 11... Bxf3 {[%clk 0:01:52.5]} 12. Bxf3 {[%clk 0:01:51]} 12...
Qf6 {[%clk 0:01:18.2]} 13. Bxc6 {[%clk 0:01:37.2]} 13... bxc6 {[%clk 0:01:19.1]}
14. Nd2 {[%clk 0:01:37.6]} 14... Rfe8 {[%clk 0:01:10.8]} 15. Qc2 {[%clk
0:01:16.1]} 15... Re2 {[%clk 0:00:58.4]} 16. Rae1 {[%clk 0:01:16.6]} 16... Rae8
{[%clk 0:00:57.6]} 17. Ne4 {[%clk 0:01:16.7]} 17... Rxc2 {[%clk 0:00:49.1]} 18.
Nxf6+ {[%clk 0:01:16.5]} 18... Bxf6 {[%clk 0:00:50]} 19. Rxe8+ {[%clk
0:01:16.6]} 19... Kg7 {[%clk 0:00:50.8]} 20. Rb1 {[%clk 0:01:07.4]} 20... c5
{[%clk 0:00:43.1]} 21. dxc5 {[%clk 0:01:06.7]} 21... Bxb2 {[%clk 0:00:43.8]} 22.
cxb6 {[%clk 0:01:07]} 22... axb6 {[%clk 0:00:44.1]} 23. Kf1 {[%clk 0:01:00.6]}
23... Bd4 {[%clk 0:00:40.2]} 24. Re2 {[%clk 0:00:59.7]} 24... Rc3 {[%clk
0:00:40.3]} 25. Rd2 {[%clk 0:00:57.1]} 25... c5 {[%clk 0:00:38.6]} 26. Rbd1
{[%clk 0:00:54.2]} 26... h5 {[%clk 0:00:35.3]} 27. h4 {[%clk 0:00:50.5]} 27...
Kf6 {[%clk 0:00:34.1]} 28. Ke2 {[%clk 0:00:38.1]} 28... Ke6 {[%clk 0:00:30.1]}
29. Rd3 {[%clk 0:00:23.5]} 29... Rc2+ {[%clk 0:00:29.2]} 30. R3d2 {[%clk
0:00:22.8]} 30... Rc3 {[%clk 0:00:29.6]} 31. Rd3 {[%clk 0:00:23.4]} 31... Rc2+
{[%clk 0:00:30]} 32. R1d2 {[%clk 0:00:24]} 32... Rc1 {[%clk 0:00:30.6]} 33. Rxd4
{[%clk 0:00:24.6]} 33... cxd4 {[%clk 0:00:30.6]} 34. Rxd4 {[%clk 0:00:25.5]}
34... Ra1 {[%clk 0:00:12.1]} 35. Rd2 {[%clk 0:00:25.1]} 35... Rb1 {[%clk
0:00:05.6]} 36. Ke3 {[%clk 0:00:22.5]} 36... Rg1 {[%clk 0:00:04.8]} 37. g3
{[%clk 0:00:21.4]} 37... Ra1 {[%clk 0:00:05.4]} 38. Kd4 {[%clk 0:00:20.4]} 38...
Rb1 {[%clk 0:00:04.3]} 39. Kc3 {[%clk 0:00:20.2]} 39... Kd7 {[%clk 0:00:04.2]}
40. Kb4 {[%clk 0:00:15]} 40... Kc6 {[%clk 0:00:03.9]} 41. Re2 {[%clk 0:00:15.6]}
41... Ra1 {[%clk 0:00:03.2]} 42. Ka3 {[%clk 0:00:10.2]} 42... Rf1 {[%clk
0:00:02.6]} 43. Kb4 {[%clk 0:00:10.4]} 43... Rd1 {[%clk 0:00:01.7]} 44. Kc3
{[%clk 0:00:06.4]} 44... Rf1 {[%clk 0:00:01.6]} 45. Kd4 {[%clk 0:00:06.3]} 45...
Rd1+ {[%clk 0:00:01.6]} 46. Ke4 {[%clk 0:00:06.5]} 46... f6 {[%clk 0:00:00.6]}
47. Kf3 {[%clk 0:00:05.7]} 47... Rd3+ {[%clk 0:00:00.8]} 48. Re3 {[%clk
0:00:05.6]} 48... Rd2 {[%clk 0:00:01.2]} 49. Re2 {[%clk 0:00:06]} 49... Rd1
{[%clk 0:00:01.5]} 50. Re6 {[%clk 0:00:05.6]} 50... f5 {[%clk 0:00:02]} 51. Rxg6
{[%clk 0:00:05.7]} 51... Ra1 {[%clk 0:00:02.7]} 52. Rg5 {[%clk 0:00:05.9]} 52...
Rxa2 {[%clk 0:00:03.4]} 53. Rxf5 {[%clk 0:00:06.4]} 53... Rb2 {[%clk 0:00:04.1]}
54. Rb5 {[%clk 0:00:06.9]} 54... Rd2 {[%clk 0:00:03.8]} 55. Rxh5 {[%clk
0:00:06.9]} 55... Rd3+ {[%clk 0:00:04]} 56. Ke4 {[%clk 0:00:07.3]} 56... Rxb3
{[%clk 0:00:04.9]} 57. Rf5 {[%clk 0:00:07.5]} 57... Rb4 {[%clk 0:00:02.6]} 58.
Kd3 {[%clk 0:00:07.9]} 58... Rb3+ {[%clk 0:00:02.6]} 59. Kd4 {[%clk 0:00:08.4]}
59... Rb1 {[%clk 0:00:02.9]} 60. h5 {[%clk 0:00:08.7]} 60... Rd1+ {[%clk
0:00:03.4]} 61. Kc3 {[%clk 0:00:08.9]} 61... Rh1 {[%clk 0:00:04]} 62. g4 {[%clk
0:00:08.9]} 62... Rh3+ {[%clk 0:00:04]} 63. f3 {[%clk 0:00:09.2]} 63... Rh1
{[%clk 0:00:03.9]} 64. Kd4 {[%clk 0:00:08.7]} 64... Rd1+ {[%clk 0:00:03.5]} 65.
Ke3 {[%clk 0:00:08.9]} 65... Rh1 {[%clk 0:00:02.6]} 66. Rg5 {[%clk 0:00:08.8]}
66... Rc1 {[%clk 0:00:02.1]} 67. h6 {[%clk 0:00:08.6]} 67... Rxc4 {[%clk
0:00:02.3]} 68. h7 {[%clk 0:00:08.8]} 1-0